Workbook

Sheet 01.10.2020
D1: Приложение №2
D2: к постановлению администрации ЗАТО г.Радужный Владимирской области
D3: от 23.10.2020г. № 1443
A5: Сведения о фактической численности муниципальных служащих, работников казенных и бюджетных учреждений и расходы на их денежное содержание по состоянию за 9 месяцев 2020 года
A7: №п/п | B7: Код раздела (подраздела) | C7: Наименование раздела (подраздела) расходов | D7: Фактическая численность на 01.07.2020 года (чел.) | E7: Годовой фонд оплаты труда с начислениями (тыс.руб.) | F7: Исполнено за отчетный период (тыс.руб.)
A8: 1 | B8: 2 | C8: 3 | D8: 4 | E8: 5 | F8: 6
A9: 1 | B9: 0100 | C9: Общегосударственные вопросы | D9: =D11+D12+D13+D14+D15 -> 202 | E9: =E11+E12+E13+E14+E15 -> 68118 | F9: =F12+F13+F14+F15 -> 49867
C10: в том числе:
A11: 1.1 | B11: 0102 | C11: Функционирование высшего должностного лица субъекта Российской Федерации и муниципального образования
A12: 1.2 | B12: 0103 | C12: Функционирование законодательных (представительных) органов государственной власти и представительных органов муниципальных образований | D12: 2 | E12: 1218 | F12: 881
A13: 1.3 | B13: 0104 | C13: Функционирование Правительства Российской Федерации, высших исполнительных органов государственной власти субъектов Российской Федерации, местных администраций | D13: 19 | E13: 10780 | F13: 7965
A14: 1.4 | B14: 0106 | C14: Обеспечение деятельности финансовых, налоговых и таможенных органов и органов финансового (финансово-бюджетного) надзора | D14: 10 | E14: 5187 | F14: 3860
A15: 1.5 | B15: 0113 | C15: Другие общегосударственные вопросы | D15: 171 | E15: 50933 | F15: 37161
A16: 2 | B16: 0300 | C16: Национальная безопасность и правоохранительная деятельность, всего, в том числе | D16: =D18 -> 5 | E16: =E18 -> 2324 | F16: =F18 -> 1705
C17: в том числе:
A18: 2.1 | B18: 0309 | C18: Защита населения и территории от чрезвычайных ситуаций природного и техногенного характера, гражданская оборона | D18: 5 | E18: 2324 | F18: 1705
A19: 3. | B19: 0400 | C19: Национальная экономика | D19: =D21 -> 39 | E19: =E21 -> 16399 | F19: =F21 -> 11523
C20: в том числе:
A21: 3.1 | B21: 0409 | C21: Дорожное хозяйство (дорожные фонды) | D21: 39 | E21: 16399 | F21: 11523
A22: 4. | B22: 0500 | C22: Жилищно-коммунальное хозяйство | D22: =D24+D25 -> 61 | E22: =E24+E25 -> 25558 | F22: 18134
C23: в том числе:
A24: 4.1 | B24: 0503 | C24: Благоустройство | D24: 7 | E24: 2714 | F24: 1939
A25: 4.2 | B25: 0505 | C25: Другие вопросы в области жилищно-коммунального хозяйства | D25: =53+1 -> 54 | E25: 22844 | F25: 16195
A26: 5 | B26: 0700 | C26: Образование | D26: =D28+D29+D30+D31 -> 550 | E26: =E28+E29+E30+E31 -> 219492 | F26: =F28+F29+F30+F31 -> 156068
C27: в том числе:
A28: 5.1 | B28: 0701 | C28: Дошкольное образование | D28: 222 | E28: 84592 | F28: 58753
A29: 5.2 | B29: 0702 | C29: Общее образование | D29: 198 | E29: 89752 | F29: 64716
A30: 5.3 | B30: 0703 | C30: Дополнительное образование детей | D30: =46+58 -> 104 | E30: 35025 | F30: =11308.46+13950.54 -> 25259
A31: 5.4. | B31: 0709 | C31: Другие вопросы в области образования | D31: 26 | E31: 10123 | F31: 7340
A32: 6. | B32: 0800 | C32: Культура, кинематография | D32: =D34+D35 -> 96 | E32: =E34+E35 -> 32355 | F32: =F34+F35 -> 23770
C33: в том числе:
A34: 6.1 | B34: 0801 | C34: Культура | D34: 54 | E34: 21045 | F34: 15361
A35: 6.2 | B35: 0804 | C35: Другие вопросы в области культуры, кинематографии | D35: 42 | E35: 11310 | F35: 8409
A36: 7. | B36: 1000 | C36: Социальная политика | D36: =D38 -> 2 | E36: =E38 -> 1003 | F36: =F38 -> 669
C37: в том числе:
A38: 7.1 | B38: 1006 | C38: Другие вопросы в области социальной политики | D38: 2 | E38: 1003 | F38: =516+153 -> 669
A39: 8. | B39: 1100 | C39: Физическая культура и спорт | D39: =D41 -> 1 | E39: =E41 -> 911 | F39: =F41 -> 458
C40: в том числе:
A41: 8.1 | B41: 1103 | C41: Спорт высших достижений | D41: 1 | E41: 911 | F41: 458
C42: Всего: | D42: =D9+D16+D19+D22+D26+D32+D36+D39 -> 956 | E42: =E9+E16+E19+E22+E26+E32+E36+E39 -> 366160 | F42: =F9+F16+F19+F22+F26+F32+F36+F39 -> 262194
B44: Заместитель главы администрации города по финансам и экономике, начальник финансового управления | E44: О.М.Горшкова
A47: В.Н. Милованова
A48: 3-67-17
